bitfinex-derivatives/quotes_ETHF0:USTF0_20240907
["timestamp","ask_amount","ask_price","bid_price","bid_amount"]
[1725721871835,3.4454,2296.9,2296.6,1.57408136]
[1725721872325,3.4454,2296.9,2296.7,1.13864136]
[1725721873137,0.43541,2296.8,2296.7,1.13864136]
[1725721873732,0.43542,2296.7,2296.6,1.13864136]
[1725721873933,3.44542,2296.7,2296.6,1.13864136]
[1725721875334,0.43544,2296.6,2296.5,4.34726147]
[1725721875628,0.43544,2296.6,2296.5,5.38628234]
[1725721875832,0.43544,2296.6,2296.5,7.07877275]
[1725721876533,0.43544,2296.6,2296.5,5.38628234]
[1725721876739,5.87846,2296.6,2296.5,3.31788824]
[1725721876933,1.52412,2296.5,2296.4,1.1394059]
[1725721877133,0.43548,2296.4,2296.2,1.69249041]
[1725721877338,0.43548,2296.4,2296.3,1.13949335]
[1725721877735,1.52419,2296.4,2296.3,1.13949335]
[1725721877940,0.4355,2296.3,2296.2,1.13949335]
[1725721878339,14.88946,2296.3,2296.2,1.13949335]
[1725721878535,0.43552,2296.2,2296.0,1.13949335]
[1725721878735,4.53439,2296.1,2296.0,1.13949335]
[1725721878937,0.43556,2296.0,2295.9,1.13949335]
[1725721879238,4.3552,2296.0,2295.7,1.69249041]
[1725721879435,0.43559,2295.8,2295.7,1.13951422]
[1725721879843,0.43561,2295.7,2295.6,1.13951422]
[1725721880140,4.67415,2295.9,2295.5,1.13951422]
[1725721880141,0.43563,2295.6,2295.5,1.13951422]
[1725721880442,3.44563,2295.6,2295.5,1.13951422]
[1725721881329,0.43569,2295.3,2295.2,1.13951422]
[1725721881530,3.44569,2295.3,2295.2,1.13951422]
[1725721881842,3.44569,2295.3,2295.1,1.13951422]
[1725721881843,0.43571,2295.2,2295.1,1.13951422]
[1725721882245,0.43573,2295.1,2295.0,1.13951422]
[1725721882932,0.43573,2295.1,2294.8,4.90029041]
[1725721882933,0.43575,2295.0,2294.8,4.34731422]
[1725721883339,3.01,2295.1,2294.8,4.78309422]
[1725721883533,1.2036,2295.2,2294.8,4.78309422]
[1725721883938,0.5892,2295.2,2294.8,4.34731422]
[1725721884144,8.20881,2296.2,2295.3,0.43568]
[1725721884145,3.6244,2295.7,2295.3,0.43568]
[1725721884641,3.01,2295.5,2295.1,4.34731422]
[1725721884843,0.4357,2295.3,2295.1,4.34731422]
[1725721885438,0.43569,2295.4,2295.1,3.2078]
[1725721886038,3.01,2295.5,2295.1,3.2078]
[1725721886244,3.44566,2295.5,2295.1,3.2078]
[1725721886444,3.44566,2295.5,2295.1,3.64351]
[1725721886844,3.44566,2295.5,2295.1,4.78302422]
[1725721887042,0.43567,2295.4,2295.1,3.64351]
[1725721887241,0.43567,2295.4,2295.1,3.64352]
[1725721887841,0.43567,2295.4,2295.1,3.2078]
[1725721888042,0.43567,2295.4,2295.1,3.64353]
[1725721890452,3.01,2295.5,2295.1,3.2078]
[1725721890653,0.43569,2295.4,2295.1,3.2078]
[1725721891040,0.43569,2295.4,2295.1,3.64352]
[1725721891344,3.44566,2295.5,2295.2,0.43571]
[1725721891742,0.43568,2295.4,2295.1,3.64352]
[1725721892647,0.43569,2295.3,2295.1,3.2078]
[1725721892952,0.43571,2295.2,2295.1,3.2078]
[1725721893348,0.43575,2295.0,2294.8,3.8025]
[1725721893553,3.44575,2295.0,2294.8,3.8025]
[1725721893742,3.44575,2295.0,2294.8,3.2078]
[1725721893947,0.43577,2294.9,2294.8,3.2078]
[1725721894143,3.01,2295.0,2294.5,3.782]
[1725721894351,3.44582,2294.6,2294.5,3.2078]
[1725721894547,0.43587,2294.4,2294.0,3.64373]
[1725721894744,3.01,2294.3,2294.0,3.64373]
[1725721894947,3.01,2294.3,2294.0,3.2078]
[1725721895253,3.44592,2294.1,2293.7,3.2078]
[1725721895447,3.01,2294.1,2293.9,0.43595]
[1725721895650,3.01,2294.1,2294.0,3.2078]
[1725721896146,3.01,2294.1,2294.0,3.64374]
[1725721897946,7.3692,2294.1,2293.4,3.2078]
[1725721898147,3.01,2293.8,2293.4,3.2078]
[1725721898356,0.436,2293.7,2293.4,3.2078]
[1725721898554,3.01,2293.8,2293.6,0.43601]
[1725721898755,3.01,2293.8,2293.7,3.2078]
[1725721899154,3.44597,2293.8,2293.7,3.2078]
[1725721899365,3.01,2293.8,2293.7,3.2078]
[1725721899555,7.80597,2293.8,2293.7,3.2078]
[1725721899760,3.44597,2293.8,2293.5,0.43602]
[1725721899968,3.01,2293.8,2293.6,0.43601]
[1725721900268,3.01,2293.8,2293.7,3.2078]
[1725721900561,0.5978,2293.9,2293.8,0.43597]
[1725721900762,0.5978,2293.9,2293.7,3.64378]
[1725721901158,1.03376,2293.9,2293.7,3.64378]
[1725721901456,0.5978,2293.9,2293.8,0.43597]
[1725721901662,0.43595,2294.0,2293.7,3.64378]
[1725721901961,0.43596,2293.9,2293.7,3.64378]
[1725721902259,0.43597,2293.8,2293.7,3.2078]
[1725721902857,8.89591,2293.8,2293.7,3.2078]
[1725721903063,8.45994,2293.8,2293.3,3.2078]
[1725721903250,0.43605,2293.4,2293.3,3.2078]
[1725721903452,3.01,2293.6,2293.3,3.2078]
[1725721903656,0.43605,2293.4,2293.3,3.2078]
[1725721904260,3.44605,2293.4,2293.3,3.2078]
[1725721905661,3.01,2293.4,2293.3,3.2078]
[1725721907267,3.44605,2293.4,2293.3,3.2078]
[1725721908259,7.80685,2293.4,2293.3,3.2078]
[1725721909167,0.43611,2293.1,2292.9,0.43614]
[1725721909369,3.44611,2293.2,2292.9,0.43614]
[1725721909665,0.43611,2293.1,2292.9,0.43614]
[1725721910054,3.4461,2293.2,2292.9,0.43614]
[1725721910263,0.43611,2293.1,2292.9,0.43614]
[1725721911264,0.43611,2293.1,2292.8,3.64396]
[1725721911766,0.43611,2293.1,2292.9,0.43615]
[1725721912165,3.4461,2293.2,2292.9,0.43615]
[1725721912354,3.01,2293.4,2293.1,3.6439]
[1725721912559,0.43609,2293.2,2293.1,3.2078]
[1725721913956,0.43608,2293.3,2293.1,3.2078]
[1725721914164,1.05934,2293.5,2293.3,0.43607]
[1725721914376,1.05934,2293.5,2292.8,1.09039]
[1725721914377,1.05934,2293.5,2293.4,3.2078]
[1725721915267,5.41934,2293.5,2293.4,3.2078]
[1725721916363,0.43608,2293.3,2293.1,0.4361]
[1725721916572,3.01,2293.4,2293.1,0.4361]
[1725721916765,0.43608,2293.3,2293.1,0.4361]
[1725721917267,3.01,2293.4,2293.0,3.2078]
[1725721917462,3.01,2293.4,2293.3,3.2078]
[1725721917663,3.44605,2293.4,2293.3,3.2078]
[1725721917863,7.80685,2293.4,2293.3,3.2078]
[1725721918668,0.4361,2293.2,2293.0,0.43613]
[1725721918876,3.01,2293.4,2293.3,0.43607]
[1725721919167,3.01,2293.4,2293.3,3.64387]
[1725721919368,0.6233,2293.5,2293.4,0.43605]
[1725721919563,3.44601,2293.6,2293.4,4.79604]
[1725721919773,3.44601,2293.6,2293.4,0.43604]
[1725721919976,3.01,2293.6,2293.5,0.43603]
[1725721920472,3.01,2293.6,2293.3,3.2078]
[1725721920674,3.01,2293.6,2293.4,0.43605]
[1725721920860,3.01,2293.6,2293.3,3.2078]
[1725721921068,0.43604,2293.5,2293.4,0.43605]
[1725721921368,0.43604,2293.5,2293.3,3.64386]
[1725721921561,0.43604,2293.5,2293.4,0.43605]
[1725721921962,3.44603,2293.6,2293.4,0.43605]
[1725721922173,0.43603,2293.5,2293.4,0.43605]
[1725721922673,0.43605,2293.4,2293.3,3.2078]
[1725721922860,3.44605,2293.4,2293.3,3.2078]
[1725721923562,3.01,2293.4,2293.3,3.64387]
[1725721923767,1.7643,2293.9,2293.3,7.5686]
[1725721923968,1.7643,2293.9,2293.6,3.2078]
[1725721923969,3.44601,2293.7,2293.6,3.2078]
[1725721924380,3.44601,2293.7,2293.2,3.64388]
[1725721924381,3.01,2293.7,2293.2,3.64388]
[1725721924669,3.01,2293.7,2293.6,0.43601]
[1725721924871,3.01,2293.7,2293.5,3.2078]
[1725721925176,3.01,2293.9,2293.6,4.36]
[1725721925473,3.01,2293.9,2293.8,3.64377]
[1725721925778,0.6073,2294.3,2293.8,7.567]
[1725721925966,2.31776,2294.7,2294.2,3.2078]
[1725721925967,3.01,2294.6,2294.2,3.2078]
[1725721926171,0.43581,2294.7,2294.5,3.2078]
[1725721926369,0.4358,2294.7,2294.5,3.2078]
[1725721926673,3.01,2294.8,2294.5,3.2078]
[1725721927266,1.70269,2295.2,2294.6,4.3576]
[1725721927267,3.01,2295.2,2294.6,4.3576]
[1725721927468,3.01,2295.2,2295.0,3.2078]
[1725721927683,0.43573,2295.1,2295.0,3.2078]
[1725721927883,3.44572,2295.2,2295.0,3.2078]
[1725721928081,3.01,2295.2,2295.0,3.2078]
[1725721929268,3.44572,2295.2,2295.0,3.2078]
[1725721929666,3.01,2295.2,2295.0,3.2078]
[1725721929870,3.01,2295.2,2295.0,3.64355]
[1725721930281,3.01,2295.2,2295.1,4.3568]
[1725721931277,3.44571,2295.2,2295.0,3.2078]
[1725721932381,3.01,2295.2,2295.0,3.2078]
[1725721932576,3.44572,2295.2,2295.0,3.2078]
[1725721932983,0.4357,2295.3,2295.0,3.2078]
[1725721933488,0.4357,2295.3,2295.0,3.64354]
[1725721933682,3.44568,2295.4,2295.0,3.64354]
[1725721933879,3.44567,2295.4,2295.3,3.2078]
[1725721935576,3.01,2295.7,2295.3,7.5646]
[1725721935775,3.01,2295.7,2295.6,3.2078]
[1725721935981,0.43561,2295.8,2295.6,3.2078]
[1725721936175,3.01,2295.9,2295.6,7.5638]
[1725721936370,3.01,2295.9,2295.6,3.2078]
[1725721936782,0.43561,2295.7,2295.6,3.2078]
[1725721936978,3.01,2295.9,2295.6,3.2078]
[1725721937178,0.43561,2295.7,2295.6,3.2078]
[1725721937680,0.43559,2295.8,2295.6,7.5638]
[1725721937982,0.43559,2295.8,2295.6,3.2078]
[1725721937983,0.43561,2295.8,2295.6,3.2078]
[1725721938388,3.44559,2295.9,2295.6,7.99943]
[1725721938583,0.43559,2295.9,2295.6,7.99943]
[1725721938887,3.44555,2296.1,2295.6,7.5638]
[1725721939074,0.43555,2296.1,2296.0,3.2078]
[1725721939888,3.44555,2296.1,2296.0,3.2078]
[1725721940288,0.4356,2295.8,2295.7,3.2078]
[1725721940789,0.43559,2295.9,2295.7,7.5638]
[1725721940991,0.43559,2295.8,2295.7,3.2078]
[1725721943692,1.52458,2295.8,2295.7,3.2078]
[1725721946990,5.88058,2295.8,2295.7,3.2078]
[1725721947691,1.52458,2295.8,2295.7,3.2078]
[1725721949489,0.43569,2295.3,2295.2,3.2078]
[1725721950285,1.08899,2295.8,2295.2,3.2078]
[1725721950491,0.43565,2295.6,2295.5,3.2078]
[1725721952291,0.43562,2295.7,2295.5,7.5638]
[1725721952593,0.43563,2295.6,2295.5,3.2078]
[1725721952793,0.43563,2295.7,2295.5,3.2078]
[1725721952996,0.43561,2295.8,2295.5,3.64345]
[1725721953686,0.6099,2295.9,2295.5,3.64345]
[1725721953687,1.04549,2295.9,2295.5,3.64345]
[1725721953895,0.6099,2295.9,2295.8,3.2078]
[1725721954191,1.04548,2295.9,2295.8,3.2078]
[1725721954697,0.6099,2295.9,2295.8,3.2078]
[1725721955094,1.04548,2295.9,2295.8,3.2078]
[1725721957897,5.14443,2295.9,2295.8,3.2078]
[1725721958091,0.43565,2295.6,2295.3,3.2078]
[1725721958289,0.43565,2295.5,2295.3,3.2078]
[1725721958495,0.43564,2295.6,2295.3,3.64349]
[1725721959997,0.43562,2295.7,2295.4,0.43567]
[1725721960195,0.43562,2295.7,2295.6,3.2078]
[1725721961890,0.43569,2295.4,2295.3,3.2078]
[1725721963601,0.43566,2295.5,2295.3,3.2078]
[1725721963997,0.43567,2295.4,2295.3,3.2078]
[1725721964408,0.6101,2295.6,2295.3,3.2078]
[1725721964699,0.43567,2295.5,2295.3,3.2078]
[1725721964903,0.6101,2295.6,2295.3,3.2078]
[1725721965094,0.43567,2295.4,2295.3,3.2078]
[1725721970701,0.43567,2295.4,2295.3,4.34731422]
[1725721970901,0.43567,2295.4,2295.3,3.2078]
[1725721971405,0.43567,2295.4,2295.3,6.52682219]
[1725721972512,0.43567,2295.4,2295.3,7.07979838]
[1725721972805,0.6101,2295.6,2295.3,7.07979838]
[1725721973001,0.43565,2295.5,2295.4,1.14074375]
[1725721973409,0.43565,2295.5,2295.4,3.32024744]
[1725721975112,0.43565,2295.5,2295.4,3.32022787]
[1725721975411,0.43565,2295.5,2295.4,2.17948412]
[1725721975815,0.43565,2295.5,2295.4,3.87197453]
[1725721976007,0.43565,2295.5,2295.4,3.32074242]
[1725721976703,0.43565,2295.5,2295.4,2.17948412]
[1725721976909,0.43565,2295.5,2295.4,1.14132323]
[1725721978411,0.43565,2295.5,2295.4,3.32083907]
[1725721978603,0.43565,2295.5,2295.4,1.14132323]
[1725721979004,1.00985,2295.5,2295.4,1.14132323]
[1725721979204,2.09899,2295.5,2295.4,1.14132323]
[1725721980212,0.43565,2295.5,2295.4,1.14132323]
[1725721980515,0.43565,2295.5,2295.4,3.89191462]
[1725721982314,1.52479,2295.5,2295.4,3.89191462]
[1725721982716,0.43565,2295.5,2295.4,3.89191462]
[1725721983114,1.69888,2295.9,2295.4,3.89191462]
[1725721983115,0.43564,2295.6,2295.4,3.89191462]
[1725721983420,0.43564,2295.6,2295.5,3.89191462]
[1725721983620,0.43564,2295.6,2295.5,3.8917406]
[1725721984119,1.52473,2295.6,2295.5,2.17936908]
[1725721984311,1.52473,2295.6,2295.5,3.8917406]
[1725721984516,1.52473,2295.6,2295.5,2.17936908]
[1725721984910,5.88073,2295.6,2295.5,3.8917406]
[1725721985211,1.52479,2295.5,2295.4,1.14187282]
[1725721985609,5.88159,2295.5,2295.4,3.32136936]
[1725721985822,5.88159,2295.5,2295.4,1.14187282]
[1725721986119,0.43565,2295.5,2295.4,3.89186629]
[1725721988618,0.43565,2295.5,2295.4,3.89188886]
[1725721989320,0.43565,2295.5,2295.4,3.32173272]
[1725721989710,1.05515,2295.5,2295.4,3.32173272]
[1725721990125,3.2078,2296.7,2295.9,0.43556]
[1725721990329,0.43549,2296.4,2296.3,3.2078]
[1725721990513,0.5637,2296.5,2296.3,7.09932879]
[1725721990712,0.43541,2296.8,2296.4,4.32696597]
[1725721990926,0.43541,2296.8,2296.6,4.34913991]
[1725721991526,0.43542,2296.7,2296.6,4.34913991]
[1725721991821,9.66214761,2296.9,2296.6,4.34913991]
[1725721992019,10.09754761,2296.9,2296.6,4.34913991]
[1725721992224,0.43541,2296.8,2296.6,4.34913991]
[1725721992415,0.43541,2296.8,2296.6,3.2078]
[1725721992612,10.09754761,2296.9,2296.6,3.2078]
[1725721993022,0.43541,2296.8,2296.6,4.34913991]
[1725721993318,0.43541,2296.8,2296.6,3.2078]
[1725721993717,1.1972,2297.8,2296.7,8.36537308]
[1725721993919,0.43528,2297.5,2297.2,3.2078]
[1725721994125,0.4353,2297.4,2297.2,3.2078]
[1725721994627,3.4453,2297.4,2297.2,3.2078]
[1725721994830,0.43531,2297.3,2297.2,3.2078]
[1725721995126,0.6145,2297.3,2297.2,3.2078]
[1725721995924,1.08809,2297.8,2297.2,3.2078]
[1725721996130,0.5918,2297.9,2297.5,3.2078]
[1725721996431,0.5918,2297.9,2297.8,3.2078]
[1725721996820,1.027,2297.9,2297.8,3.2078]
[1725721997030,0.5918,2297.9,2297.8,3.2078]
[1725721997224,1.08768,2298.6,2297.8,7.5598]
[1725721997427,0.43514,2298.2,2297.9,0.607]
[1725721997724,3.23120258,2298.7,2297.9,1.04219]
[1725721997920,3.64291,2298.4,2297.9,1.04219]
[1725721998116,3.64291,2298.4,2297.9,0.607]
[1725721998531,0.43512,2298.3,2297.9,0.607]
[1725721999127,3.2078,2298.4,2298.1,3.2078]
[1725721999128,0.43511,2298.4,2298.1,3.2078]
[1725721999427,0.43514,2298.2,2298.1,3.2078]
[1725721999626,3.01,2298.5,2298.1,3.2078]
[1725721999819,4.84064373,2298.6,2298.4,3.2078]
[1725722000024,0.21937062,2298.8,2298.4,3.2078]
[1725722000025,0.43503,2298.8,2298.4,3.2078]
[1725722000225,1.1757,2298.9,2298.4,3.64289]
[1725722000427,1.1757,2298.9,2298.7,3.2078]
[1725722000627,0.43498,2299.1,2298.7,3.2078]
[1725722000834,0.43499,2299.0,2298.7,3.2078]
[1725722001222,0.43498,2299.1,2298.7,3.2078]
[1725722001536,0.43499,2299.0,2298.7,3.2078]
[1725722001741,0.435,2299.0,2298.7,3.2078]
[1725722002532,7.92784,2299.3,2298.7,3.2078]
[1725722002833,0.43503,2298.8,2298.7,3.2078]
[1725722003621,4.3504,2298.8,2298.4,3.2078]
[1725722003926,4.3504,2298.8,2298.1,1.1599]
[1725722003927,0.43507,2298.6,2298.5,3.2078]
[1725722004623,1.00216,2298.7,2298.5,3.2078]
[1725722005129,0.5671,2298.7,2298.5,3.2078]
[1725722005726,0.43506,2298.6,2298.5,3.2078]
[1725722005927,0.43506,2298.6,2298.1,4.3677]
[1725722006135,0.4351,2298.4,2298.1,3.7849]
[1725722006436,1.04498,2298.6,2298.1,3.7849]
[1725722006625,1.04498,2298.6,2298.4,3.2078]
[1725722007337,1.04498,2298.6,2298.1,3.7849]
[1725722008026,0.6099,2298.6,2298.1,4.22005]
[1725722008532,0.43503,2298.8,2298.5,3.2078]
[1725722009027,0.43503,2298.8,2298.2,4.21293]
[1725722009634,0.43506,2298.7,2298.2,3.7778]
[1725722010429,0.43506,2298.7,2298.2,4.21294]
[1725722011133,0.43505,2298.7,2298.2,4.21294]
[1725722011337,0.43505,2298.7,2298.2,4.21293]
[1725722011956,0.5743,2298.9,2298.2,3.7778]
[1725722012237,0.43506,2298.7,2298.2,3.7778]
[1725722012936,0.5743,2298.9,2298.5,3.64286]
[1725722013138,0.43494,2299.3,2298.8,3.64281]
[1725722013537,1.04152,2299.4,2298.9,0.43501]
[1725722014639,1.04152,2299.4,2298.9,1.03541]
[1725722015139,0.6066,2299.4,2298.9,0.6004]
[1725722015850,0.43493,2299.3,2298.9,0.6004]
[1725722016344,0.43493,2299.3,2298.9,1.0354]
[1725722016539,0.6066,2299.4,2298.9,0.6004]
[1725722016841,0.43497,2299.1,2298.8,3.2078]
[1725722017839,0.43498,2299.1,2298.8,3.2078]
[1725722018343,2.30252,2299.4,2298.8,3.2078]
[1725722018532,0.43498,2299.1,2298.8,3.2078]
[1725722019331,0.43496,2299.2,2298.8,3.64283]
[1725722020039,6.2178,2299.6,2298.8,3.64283]
[1725722020040,3.2078,2299.6,2299.0,3.01]
[1725722020246,0.6096,2300.3,2299.5,3.2078]
[1725722020443,0.6096,2300.3,2299.8,3.2078]
[1725722020643,1.04435,2300.3,2299.8,3.64264]
[1725722020844,0.43476,2300.2,2299.8,3.2078]
[1725722021239,0.43478,2300.1,2299.8,3.2078]
[1725722021433,0.6096,2300.3,2299.8,3.2078]
[1725722021634,0.43478,2300.2,2299.8,3.2078]
[1725722021944,1.04435,2300.3,2299.8,3.2078]
[1725722022149,1.04435,2300.3,2299.8,3.64263]
[1725722022737,0.22258523,2300.8,2299.8,3.64263]
[1725722022738,1.08614,2301.9,2300.4,1.08681]
[1725722022954,1.01646,2301.8,2301.2,3.2078]
[1725722023250,1.01646,2301.8,2301.2,3.64236]
[1725722023251,0.582,2301.8,2301.2,3.64236]
[1725722023544,0.6194,2301.9,2301.5,3.2078]
[1725722023935,0.21225317,2302.4,2301.8,3.2078]
[1725722023936,0.43436,2302.4,2301.8,3.2078]
[1725722024139,3.2078,2302.8,2301.8,3.2078]
[1725722024343,0.43429,2302.7,2302.1,3.2078]
[1725722024640,0.5729,2303.0,2302.1,3.2078]
[1725722024641,4.76817444,2302.9,2302.1,3.2078]
[1725722024948,0.4343,2302.7,2302.1,3.2078]
[1725722025149,0.43431,2302.6,2302.1,3.2078]
[1725722025339,0.43436,2302.4,2301.8,3.2078]
[1725722025536,4.58232001,2302.6,2301.8,3.2078]
[1725722025752,0.43436,2302.4,2301.8,3.2078]
[1725722025953,0.43433,2302.5,2301.8,3.2078]
[1725722026251,4.58232001,2302.7,2301.8,3.2078]
[1725722026437,0.43435,2302.4,2301.8,3.2078]
[1725722026640,4.58232001,2302.7,2301.8,3.2078]
[1725722026842,0.43439,2302.2,2301.8,3.2078]
[1725722027041,0.43438,2302.3,2301.8,3.2078]
[1725722027748,4.29353,2302.8,2301.8,3.2078]
[1725722027749,1.08589,2302.4,2301.8,3.2078]
[1725722027947,0.43443,2302.0,2301.8,3.2078]
[1725722028247,0.43444,2302.0,2301.8,3.2078]
[1725722028449,0.43444,2301.9,2301.8,3.2078]
[1725722028850,0.43449,2301.7,2301.2,3.2078]
[1725722029044,0.43445,2301.9,2301.2,3.2078]
[1725722029249,3.808,2302.2,2301.2,3.2078]
[1725722029451,0.43446,2301.8,2301.5,3.2078]
[1725722029649,0.43448,2301.7,2301.5,3.2078]
[1725722029850,4.89398,2302.2,2301.5,3.2078]
[1725722030050,3.808,2302.2,2301.5,3.2078]
[1725722030254,0.43444,2301.9,2301.5,3.2078]
[1725722031053,0.43446,2301.8,2301.5,3.2078]
[1725722031246,0.43445,2301.9,2301.5,3.2078]
[1725722031452,0.43448,2301.8,2301.5,3.2078]
[1725722031965,0.43449,2301.7,2301.2,3.2078]
[1725722033057,0.43448,2301.7,2301.2,3.2078]
[1725722033646,0.43447,2301.8,2301.2,3.2078]
[1725722033959,0.43445,2301.9,2301.5,3.2078]
[1725722034658,3.808,2302.2,2301.5,3.2078]
[1725722034853,0.43445,2301.9,2301.5,3.2078]
[1725722035654,0.43446,2301.8,2301.5,3.2078]
[1725722036051,0.4345,2301.6,2301.5,3.2078]
[1725722036357,4.3448,2301.8,2301.2,3.2078]
[1725722036548,0.43449,2301.7,2301.2,3.2078]
[1725722037255,1.08611,2301.9,2301.2,3.2078]
[1725722037455,0.4345,2301.7,2301.2,3.2078]
[1725722037652,4.81916181,2301.8,2301.2,3.2078]
[1725722037853,0.4345,2301.6,2301.2,3.2078]
[1725722038057,1.0862,2301.7,2301.2,3.2078]
[1725722038258,0.43455,2301.3,2301.2,3.2078]
[1725722038655,4.78015,2301.3,2301.2,3.2078]
[1725722040859,0.43455,2301.3,2301.2,3.2078]
[1725722041061,4.78015,2301.3,2301.2,3.2078]
[1725722041664,5.86654,2301.3,2301.2,0.294]
[1725722041977,11.86654,2301.3,2301.2,0.294]
[1725722042163,15.44199,2301.3,2301.0,3.2078]
[1725722042361,3.2078,2301.1,2300.2,4.81144]
[1725722042558,0.4347,2300.6,2300.2,0.6148]
[1725722042867,0.43474,2300.4,2299.9,7.2178]
[1725722043061,0.43477,2300.2,2299.9,7.2178]
[1725722043263,0.43475,2300.3,2299.8,3.7939]
[1725722043860,3.2078,2300.5,2299.8,3.7939]
[1725722044060,0.43477,2300.2,2299.8,3.7939]
[1725722044261,0.43482,2299.9,2299.8,3.7939]
[1725722044567,0.43477,2300.2,2299.6,1.01607]
[1725722044771,0.43479,2300.1,2299.7,3.2078]
[1725722045070,1.08686,2300.3,2299.6,0.5812]
[1725722045258,0.43483,2299.9,2299.6,0.5812]
[1725722045461,0.43484,2299.8,2299.4,3.8352]
[1725722045960,0.609,2300.1,2299.4,3.8352]
[1725722046171,0.43481,2300.0,2299.4,4.27011]
[1725722046367,0.43482,2299.9,2299.4,3.8352]
[1725722046670,0.43483,2299.9,2299.4,3.8352]
[1725722047061,0.609,2300.1,2299.4,3.8352]
[1725722047366,0.4348,2300.0,2299.4,3.8352]
[1725722047665,0.609,2300.1,2299.4,3.8352]
[1725722047977,0.43483,2299.9,2299.4,3.8352]
[1725722049367,0.43481,2300.0,2299.4,4.27011]
[1725722049569,1.04379,2300.1,2299.5,0.43489]
[1725722049870,0.43477,2300.2,2299.6,0.43487]
[1725722050472,4.01730773,2300.6,2299.7,3.2078]
[1725722050672,4.60770773,2300.6,2299.7,3.2078]
[1725722050972,3.64257,2300.2,2299.7,3.2078]
[1725722051466,0.43478,2300.1,2299.5,4.63152]
[1725722051772,0.43479,2300.1,2299.5,0.43488]
[1725722052655,0.4348,2300.0,2299.4,4.2701]
[1725722053060,0.43479,2300.1,2299.5,0.43489]
[1725722053761,0.4348,2300.0,2299.5,0.43489]
[1725722054157,0.43483,2299.9,2299.4,3.8352]
[1725722054364,1.08697,2300.1,2299.4,3.8352]
[1725722054577,6.01380249,2300.1,2299.4,3.8352]
[1725722054871,0.43483,2299.9,2299.4,3.8352]
[1725722055372,0.43485,2299.8,2299.4,3.8352]
[1725722055578,6.01380249,2300.1,2299.4,3.8352]
[1725722055772,0.43484,2299.8,2299.4,3.8352]
[1725722056375,0.43481,2300.0,2299.4,4.2701]
[1725722056668,0.43479,2300.1,2299.5,0.43488]
[1725722057472,4.29474,2300.2,2299.4,3.8352]
[1725722057674,0.43483,2299.9,2299.4,3.8352]
[1725722057968,0.43483,2299.9,2299.5,3.01]
[1725722058361,0.43481,2300.0,2299.5,3.01]
[1725722058564,1.08694,2300.2,2299.5,3.01]
[1725722058974,0.43483,2299.9,2299.5,3.01]
[1725722059168,0.43486,2299.7,2299.5,3.01]
[1725722059370,1.08701,2300.0,2299.5,3.01]
[1725722059673,0.43486,2299.7,2299.5,3.01]
[1725722060975,0.43485,2299.8,2299.5,3.01]
[1725722061169,1.08705,2299.9,2299.5,3.01]
[1725722061762,0.43487,2299.6,2299.5,3.01]
[1725722062165,0.5805,2299.9,2299.5,3.01]
[1725722062369,0.43487,2299.7,2299.5,3.01]
[1725722063276,0.43487,2299.6,2299.5,3.01]
[1725722063777,0.43487,2299.7,2299.5,3.01]
[1725722066472,0.43487,2299.6,2299.5,3.01]
[1725722066982,0.43487,2299.6,2299.4,3.8352]
[1725722068076,3.64261,2300.0,2299.4,8.184]
[1725722068277,0.43479,2300.1,2299.5,3.01]
[1725722068485,1.08688,2300.3,2299.5,3.01]
[1725722068777,1.08696,2300.1,2299.5,3.01]
[1725722069781,0.43484,2299.8,2299.5,3.01]
[1725722071285,0.43483,2299.9,2299.5,3.01]
[1725722071880,0.43484,2299.8,2299.5,3.01]
[1725722072077,0.43489,2299.5,2299.4,0.6274]
[1725722072279,1.08715,2299.7,2299.1,3.5912]
[1725722072481,0.43492,2299.4,2299.1,4.1593]
[1725722072687,0.43494,2299.3,2299.1,4.1593]
[1725722072880,0.43495,2299.2,2299.1,4.1593]
[1725722073185,0.43497,2299.1,2298.8,3.01]
[1725722073388,0.43496,2299.2,2298.8,3.01]
[1725722074386,0.43494,2299.3,2298.8,3.44502]
[1725722074579,0.43491,2299.5,2299.0,3.64278]
[1725722074785,4.3728,2299.8,2299.0,3.2078]
[1725722075085,0.43494,2299.3,2299.0,3.2078]
[1725722075285,0.43495,2299.2,2299.0,3.2078]
[1725722075479,0.43497,2299.1,2299.0,3.2078]
[1725722075887,0.43497,2299.1,2298.7,1.1654]
[1725722076094,1.68506,2299.3,2298.7,1.1654]
[1725722076291,0.43499,2299.0,2298.7,1.1654]
[1725722076482,0.43498,2299.1,2298.7,1.1654]
[1725722078189,1.68506,2299.3,2298.7,1.1654]
[1725722078190,0.43499,2299.0,2298.7,1.1654]
[1725722078594,0.43498,2299.1,2298.7,1.1654]
[1725722079393,0.43499,2299.0,2298.7,1.1654]
[1725722080688,0.43498,2299.1,2298.7,1.1654]
[1725722080994,1.03265,2299.3,2298.8,3.44503]
[1725722081195,0.43488,2299.6,2299.1,6.65276]
[1725722081489,4.0971,2299.9,2299.1,6.2178]
[1725722081490,1.08715,2299.7,2299.1,6.2178]
[1725722081801,0.43491,2299.4,2299.1,6.2178]
[1725722082492,0.43491,2299.4,2299.1,3.01]
[1725722082886,0.4349,2299.5,2299.1,3.01]
[1725722083195,0.43491,2299.4,2299.1,3.01]
[1725722085499,1.08724,2299.5,2299.0,1.13864332]
[1725722085797,0.43496,2299.2,2298.9,1.13864332]